[Event "Italian-ch Semifinal 2022"]
[Site "Acqui Terme"]
[Date "2022.06.15"]
[Round "2.5"]
[White "Carnicelli, Valerio"]
[Black "Tripodi, Enzo"]
[Result "1-0"]
[ECO "B90"]
[WhiteElo "2319"]
[BlackElo "2170"]
[Annotator "TA"]
[PlyCount "63"]
[EventDate "2022.06.15"]
[EventType "swiss"]
[EventCountry "ITA"]
[SourceTitle "playchess.com"]
[Source "ChessBase"]
[SourceQuality "1"]
[TimeControl "40/5400+30:1800+30"]

{[%evp 27,62,35,39,41,41,29,20,27,23,31,36,38,29,8,20,20,152,155,485,471,848,848,1851,1806,2647,2554,29979,29980,29991,29992,29992,29993,29993,29994,29994,29995,29999]} 1. e4 {[%emt 0:00:02] CB} c5 {[%emt 0:00:17]} 2. Nf3 {[%emt 0:00:04]} d6 {[%emt 0:00:04]} 3. d4 {[%emt 0:00:04]} cxd4 {[%emt 0:00:04]} 4. Nxd4 {[%emt 0:00:03]} Nf6 {[%emt 0:00:04]} 5. Nc3 {[%emt 0:00:04]} a6 {[%emt 0:00:02]} 6. f3 {[%emt 0:00:04]} e5 {[%emt 0:00:28]} 7. Nb3 {[%emt 0:00:05]} Be6 {[%emt 0:00:03]} 8. Be3 {[%emt 0:00:04]} Be7 {[%emt 0:00:04]} 9. Qd2 {[%emt 0:00:04]} O-O {[%emt 0:00:04]} 10. O-O-O {[%emt 0:00:04]} Nbd7 {[%emt 0:00:03]} 11. g4 {[%emt 0:00:04][%cal Bg2g4,Bg4g5][%mdl 32]} b5 {[%emt 0:00:02][%cal Bb7b5,Bb5b4][%mdl 32]} 12. g5 {[%emt 0:00:05]} b4 {[%emt 0:00:03]} 13. Ne2 {[%emt 0:00:05]} Ne8 {[%emt 0:00:02]} 14. f4 {[%emt 0:00:04]} a5 {[%emt 0:00:03] And now ...a4 would win.} 15. f5 {[%emt 0:00:06] B90: Sicilian Najdorf: Unusual White 6th moves, 6 Be3 Ng4 and 6 Be3 e5.} a4 {[%emt 0:00:03]} 16. fxe6 {[%emt 0:00:09]} (16. Nbd4 $5 {[%cal Rd4c6]} exd4 17. Nxd4 $14) 16... axb3 {[%emt 0:00:17]} 17. cxb3 $1 {[%emt 0:00:13] The position is equal. The main line 17.cxb3 scores better than 17.exf7+.} ({Not} 17. exd7 $2 bxa2 18. Qd5 a1=Q+ $19) 17... fxe6 {[%emt 0:00:05]} 18. Bh3 {[%emt 0:00:14][%cal Bf1h3,Bh3e6,Be6c4][%mdl 32]} Rxa2 {[%emt 0:00:10] aiming for ...Nc7.} 19. Bxe6+ {[%emt 0:00:08]} Kh8 {[%emt 0:00:02]} 20. Ng3 {[%emt 0:00:15] Active counter play!} Nc7 $1 {[%emt 0:04:47]} 21. Bc4 {[%emt 0:00:11] [#]} g6 $146 {[%emt 0:01:18] [#] Against Nf5} (21... Qa8 $1 $11) ({Predecessor:} 21... Qa8 22. Rhf1 Rxf1 23. Rxf1 Ra1+ 24. Kc2 Rxf1 25. Bxf1 d5 26. Qf2 g6 27. h4 Qf8 28. Qxf8+ Nxf8 {½-½ (41) Radjabov,T (2726)-Vachier Lagrave,M (2757) Tashkent 2014 CBM 163 [CB]}) 22. h4 $1 $16 {[%emt 0:19:46][%cal Bh2h4,Bh4h5,Bh5g6][%mdl 32]} Rf3 $2 {[%emt 0:09:10] [#] Black cannot hold the game after this.} (22... h5 $16 {is tougher.} 23. gxh6 Nf6) 23. h5 $1 $18 {[%emt 0:06:11]} Ra1+ {[%emt 0:28:02]} (23... Rxg3 $2 24. hxg6 Nf8 25. Qf2 Ra1+ 26. Kc2) (23... gxh5 $142 24. Rxh5 Nf8) 24. Kc2 {[%emt 0:04:55][%cal Oh5g6] Threatens to win with hxg6!} Rxd1 {[%emt 0:00:04]} 25. Qxd1 {[%emt 0:05:00][%cal Oh5g6] hxg6! would kill now.} d5 {[%emt 0:20:59] [#]} 26. hxg6 $1 {[%emt 0:05:11]} Nf8 {[%emt 0:02:32]} (26... Rf2+ 27. Bxf2) 27. Qxf3 {[%emt 0:03:03] White mates.} dxc4 {[%emt 0:00:20]} 28. Qf7 {[%emt 0:10:39][%csl Gf7][%cal Rg6g7]} Qd3+ {[%emt 0:03:05]} 29. Kc1 {[%emt 0:00:12][%csl Gf7][%cal Rg6g7,Bc2c1,Bc1b1,Bb1a1][%mdl 32]} Qxe3+ {[%emt 0:01:11]} 30. Kb1 {[%emt 0:00:14][%csl Gf7][%cal Rg6g7]} Qd3+ {[%emt 0:01:33]} 31. Ka1 {[%emt 0:00:16][%csl Gf7][%cal Rg6g7]} cxb3 {[%emt 0:00:55]} 32. g7# {[%emt 0:00:04] Weighted Error Value: White=0.01 (flawless) /Black=0.78} 1-0

[Event "Italian-ch Semifinal 2022"]
[Site "Acqui Terme"]
[Date "2022.06.15"]
[Round "2.6"]
[White "Pisacane, Pietro"]
[Black "Corvi, Marco"]
[Result "1/2-1/2"]
[ECO "A45"]
[WhiteElo "2138"]
[BlackElo "2318"]
[Annotator "RC"]
[PlyCount "124"]
[EventDate "2022.06.15"]
[EventType "swiss"]
[EventCountry "ITA"]
[SourceTitle "playchess.com"]
[Source "ChessBase"]
[SourceQuality "1"]
[TimeControl "40/5400+30:1800+30"]

1. d4 {[%emt 0:00:05]} Nf6 {[%emt 0:00:36]} 2. Bf4 {[%emt 0:00:11]} e6 {[%emt 0:01:19]} 3. e3 {[%emt 0:00:31]} Bd6 {[%emt 0:05:40]} 4. Bxd6 {[%emt 0:05:42]} cxd6 {[%emt 0:00:09]} 5. Bd3 {[%emt 0:02:01]} d5 {[%emt 0:01:45]} 6. Nd2 {[%emt 0:06:20]} b6 {[%emt 0:04:03]} 7. Qe2 {[%emt 0:02:08]} Bb7 {[%emt 0:00:40]} 8. O-O-O {[%emt 0:05:25]} Nc6 {[%emt 0:02:00]} 9. c3 {[%emt 0:01:06]} Rc8 {[%emt 0:02:17]} 10. Kb1 {[%emt 0:00:11]} Na5 {[%emt 0:01:52]} 11. f3 {[%emt 0:04:22]} Qc7 {[%emt 0:09:10]} 12. Nh3 {[%emt 0:03:41]} Nc4 {[%emt 0:01:39]} 13. Nf2 {[%emt 0:07:53]} b5 {[%emt 0:09:51]} 14. Rc1 {[%emt 0:01:52]} a6 {[%emt 0:01:41]} 15. g4 {[%emt 0:05:37]} d6 {[%emt 0:04:10]} 16. g5 {[%emt 0:02:05]} Nd7 {[%emt 0:01:50]} 17. h4 {[%emt 0:03:44]} Ndb6 {[%emt 0:01:30]} 18. b3 {[%emt 0:07:00]} Nxd2+ {[%emt 0:00:09]} 19. Qxd2 {[%emt 0:00:04]} Bc6 {[%emt 0:05:25]} 20. h5 {[%emt 0:02:29]} Rb8 {[%emt 0:07:57]} 21. Ka1 {[%emt 0:02:44]} a5 {[%emt 0:03:59]} 22. Qe2 {[%emt 0:00:32]} a4 {[%emt 0:03:17]} 23. b4 {[%emt 0:08:56]} Nc4 {[%emt 0:01:38]} 24. e4 {[%emt 0:03:20]} Kd7 {[%emt 0:06:56]} 25. Ng4 {[%emt 0:02:26]} Kc8 {[%emt 0:03:31]} 26. h6 {[%emt 0:03:16]} Rg8 {[%emt 0:01:49]} 27. exd5 {[%emt 0:02:46]} exd5 {[%emt 0:00:41]} 28. Bxh7 {[%emt 0:00:49]} Kb7 {[%emt 0:02:05]} 29. Bxg8 {[%emt 0:00:24]} Rxg8 {[%emt 0:00:02]} 30. Rce1 {[%emt 0:04:01]} Bd7 {[%emt 0:00:20]} 31. h7 {[%emt 0:02:23]} Rh8 {[%emt 0:01:37]} 32. Ne3 {[%emt 0:02:07]} Nb6 {[%emt 0:00:21]} 33. Qd3 {[%emt 0:00:43]} a3 {[%emt 0:01:30]} 34. Rc1 {[%emt 0:01:07]} g6 {[%emt 0:03:00]} 35. f4 {[%emt 0:01:12]} Qc8 {[%emt 0:04:55]} 36. Rcf1 {[%emt 0:02:21]} Bh3 {[%emt 0:04:16]} 37. Rf2 {[%emt 0:03:20]} Rxh7 {[%emt 0:00:30]} 38. Rfh2 {[%emt 0:01:15]} Rh5 {[%emt 0:00:24]} 39. f5 {[%emt 0:02:32]} Bxf5 {[%emt 0:04:50]} 40. Nxf5 {[%emt 0:00:00]} Rxh2 {[%emt 0:00:00]} 41. Nxd6+ {[%emt 0:10:29]} Kc6 {[%emt 0:01:02]} 42. Qxb5+ {[%emt 0:06:32]} Kxd6 {[%emt 0:00:18]} 43. Qxb6+ {[%emt 0:00:32]} Ke7 {[%emt 0:10:32]} 44. Qf6+ {[%emt 0:00:41]} Kf8 {[%emt 0:00:44]} 45. Qh8+ {[%emt 0:01:00]} Ke7 {[%emt 0:00:01]} 46. Qe5+ {[%emt 0:01:04]} Kf8 {[%emt 0:00:14]} 47. Qxh2 {[%emt 0:02:39]} Qxc3+ {[%emt 0:00:09]} 48. Kb1 {[%emt 0:00:05]} Qxb4+ {[%emt 0:00:25]} 49. Kc1 {[%emt 0:01:41]} Qc3+ {[%emt 0:00:21]} 50. Kd1 {[%emt 0:01:33]} Qxd4+ {[%emt 0:14:39]} 51. Ke2 {[%emt 0:06:15]} Qe4+ {[%emt 0:00:54]} 52. Kf2 {[%emt 0:00:52]} Qd4+ {[%emt 0:00:59]} 53. Kg2 {[%emt 0:01:31]} Qe4+ {[%emt 0:00:42]} 54. Kf1 {[%emt 0:01:11]} Qf3+ {[%emt 0:00:30]} 55. Kg1 {[%emt 0:00:39]} Qd1+ {[%emt 0:00:44]} 56. Kf2 {[%emt 0:00:20]} Qd2+ {[%emt 0:00:34]} 57. Kf3 {[%emt 0:00:24]} Qd3+ {[%emt 0:00:23]} 58. Kf4 {[%emt 0:01:04]} Qe4+ {[%emt 0:00:44]} 59. Kg3 {[%emt 0:00:11]} Qe3+ {[%emt 0:00:29]} 60. Kg4 {[%emt 0:00:39]} Qe4+ {[%emt 0:00:23]} 61. Kh3 {[%emt 0:00:38]} Qf3+ {[%emt 0:00:45]} 62. Kh4 {[%emt 0:00:12]} Qe4+ {[%emt 0:00:40]} 1/2-1/2

[Event "Italian-ch Semifinal 2022"]
[Site "Acqui Terme"]
[Date "2022.06.15"]
[Round "2.7"]
[White "Bettalli, Francesco"]
[Black "Gioseffi, Massimiliano"]
[Result "1/2-1/2"]
[ECO "B23"]
[WhiteElo "2304"]
[BlackElo "2136"]
[Annotator "TA"]
[PlyCount "56"]
[EventDate "2022.06.15"]
[EventType "swiss"]
[EventCountry "ITA"]
[SourceTitle "playchess.com"]
[Source "ChessBase"]
[SourceQuality "1"]
[TimeControl "40/5400+30:1800+30"]

{[%evp 11,56,20,20,-13,-7,-10,0,-25,-23,-49,-26,-35,16,10,22,0,11,0,0,-6,0,0,0,0,0,-5,0,-7,0,0,0,0,0,-75,-74,-66,-70,-115,-108,-174,-141,-129,-131,-133,-135,-150,-66]} 1. e4 {[%emt 0:00:31]} c5 {[%emt 0:00:05]} 2. Nc3 {[%emt 0:00:13]} e6 {[%emt 0:00:05]} 3. Nge2 {[%emt 0:00:06]} a6 {[%emt 0:01:27]} 4. g3 {[%emt 0:00:10]} b5 {[%emt 0:03:48]} 5. Bg2 {[%emt 0:00:46]} Bb7 {[%emt 0:00:11]} 6. O-O {[%emt 0:01:38]} Nf6 {[%emt 0:02:00]} 7. e5 {[%emt 0:04:58][%csl LRb7,LRf6] B23: Closed Sicilian: Lines without g3.} Bxg2 {[%emt 0:02:21]} 8. Kxg2 {[%emt 0:00:04]} Ng4 {[%emt 0:03:18]} 9. d4 {[%emt 0:00:47] The position is equal.} cxd4 {[%emt 0:02:53]} 10. Qxd4 {[%emt 0:00:12]} h5 {[%emt 0:01:30]} 11. f4 {[%emt 0:00:57] [#]} d5 $146 {[%emt 0:03:55] Inhibits Qe4.} (11... Nc6 $15 12. Qe4 Rc8) ({Predecessor:} 11... Nc6 12. Qe4 Rc8 13. h3 Nh6 14. Be3 Nf5 15. Rad1 Qc7 16. Bf2 Qb7 17. g4 hxg4 18. hxg4 {0-1 (44) Knoppert,E (2340)-Handke,F (2476) Belgium 2004}) 12. exd6 $11 {[%emt 0:01:56] Black must now prevent f5.} Qxd6 {[%emt 0:00:25]} (12... Nc6 {with more complications.} 13. d7+ Qxd7 14. Qxd7+ Kxd7 15. h3 Nh6) 13. Qxd6 {[%emt 0:00:46]} (13. f5 {seems wilder.} exf5 14. Qd5 Nc6 15. Qxf5 Nce5 16. h3) 13... Bxd6 {[%emt 0:00:08]} 14. Ne4 {[%emt 0:10:07]} Be7 {[%emt 0:02:03]} 15. c3 {[%emt 0:05:56]} Nc6 {[%emt 0:03:18]} 16. h3 {[%emt 0:01:44]} Nf6 {[%emt 0:01:53]} 17. Nxf6+ {[%emt 0:00:13]} Bxf6 {[%emt 0:00:39]} 18. Be3 {[%emt 0:00:15]} O-O {[%emt 0:05:05]} 19. Rfd1 {[%emt 0:02:11]} Rfc8 {[%emt 0:02:22]} 20. g4 {[%emt 0:01:42]} hxg4 {[%emt 0:02:01]} 21. hxg4 {[%emt 0:00:03]} g6 {[%emt 0:10:06][%cal Bg7g6,Bg6g5][%mdl 32]} 22. f5 {[%emt 0:10:25]} (22. Rab1 $11 {remains equal.}) 22... exf5 $17 {[%emt 0:05:04]} (22... gxf5 23. gxf5 exf5 24. Ng3 $11) 23. gxf5 {[%emt 0:00:02]} Re8 {[%emt 0:10:25]} (23... gxf5 24. Ng3 $11) 24. Kf3 {[%emt 0:02:07]} Ne5+ {[%emt 0:08:18]} ({But not} 24... gxf5 $6 25. Rg1+ Kf8 26. Ng3 $15 (26. Bc5+ Be7 $15)) 25. Kf4 {[%emt 0:00:51]} (25. Kg3 $17) 25... Nc4 {[%emt 0:16:48]} 26. Bd4 {[%emt 0:00:17] [#]} g5+ $1 {[%emt 0:02:31]} ({Not} 26... Rxe2 27. Bxf6 Rf2+ 28. Kg3 Rxf5 29. Rf1 $15) 27. Kf3 {[%emt 0:01:09]} Bxd4 {[%emt 0:01:36]} 28. Nxd4 {[%emt 0:02:31] [#]} Nxb2 {[%emt 0:03:53] Weighted Error Value: White=0.21 (precise) /Black=0.06 (flawless)} (28... Re3+ $1 $17 29. Kf2 Rae8) 1/2-1/2

[Event "Italian-ch Semifinal 2022"]
[Site "Acqui Terme"]
[Date "2022.06.15"]
[Round "2.8"]
[White "Favini, Matteo"]
[Black "Boraso, Alessio"]
[Result "0-1"]
[ECO "B29"]
[WhiteElo "1692"]
[BlackElo "2287"]
[Annotator "TA"]
[PlyCount "57"]
[EventDate "2022.06.15"]
[EventType "swiss"]
[EventCountry "ITA"]
[SourceTitle "playchess.com"]
[Source "ChessBase"]
[SourceQuality "1"]
[TimeControl "40/5400+30:1800+30"]

{[%evp 9,57,4,42,-32,-35,-39,-38,-43,-31,-34,-7,0,0,-43,-47,-61,-54,-154,-148,-145,-97,-90,-92,-110,-158,-178,-162,-276,-266,-320,-309,-289,-232,-304,-305,-825,-808,-1345,-1387,-1512,-1505,-1472,-1453,-1416,-1436,-1937,-1244,-29991,-29981,-29993]} 1. e4 {[%emt 0:00:04]} c5 {[%emt 0:00:21]} 2. Nf3 {[%emt 0:00:07]} Nf6 {[%emt 0:00:35]} 3. Nc3 {[%emt 0:00:18]} d5 {[%emt 0:02:05]} 4. exd5 {[%emt 0:01:14]} Nxd5 {[%emt 0:00:11]} 5. Bc4 {[%emt 0:01:18]} Nb6 {[%emt 0:00:59]} 6. Ne5 {[%emt 0:04:50] B29: Sicilian: 2 Nf3 Nf6 (Nimzowitsch Variation).} ({White should try} 6. Bb5+ $14 Nc6 7. O-O) 6... Nxc4 $15 {[%emt 0:01:22]} 7. Nxc4 {[%emt 0:00:09]} g6 {[%emt 0:08:22]} 8. d3 {[%emt 0:03:29] Black is slightly better.} Nc6 {[%emt 0:02:47]} 9. Be3 {[%emt 0:07:45] [#]} Nd4 $146 {[%emt 0:03:35]} ({Predecessor:} 9... Bg7 10. O-O b6 11. a4 Be6 12. Qd2 Bxc4 13. dxc4 Qxd2 14. Bxd2 O-O-O 15. Rfd1 Na5 {0-1 (30) Kaluzny,M (2078)-Rakhmanov,A (2623) Teplice 2015}) 10. Ne4 {[%emt 0:06:27]} b6 {[%emt 0:07:35]} 11. Bxd4 {[%emt 0:07:29]} cxd4 {[%emt 0:06:39]} 12. Qf3 {[%emt 0:27:55]} Be6 {[%emt 0:04:32]} 13. O-O-O {[%emt 0:05:23]} ({White should play} 13. Ng5 $15 Bd5 14. Ne4) 13... Bh6+ {[%emt 0:16:26]} 14. Kb1 {[%emt 0:00:38]} O-O {[%emt 0:01:05]} (14... b5 $142 15. Ncd2 Rc8) 15. h4 $17 {[%emt 0:03:28]} Qd5 {[%emt 0:07:07] [#] ...b5 is the strong threat.} 16. b3 {[%emt 0:04:55]} b5 {[%emt 0:02:00]} 17. Ncd2 {[%emt 0:08:25]} a5 {[%emt 0:01:03][%cal Ba7a5,Ba5a4][%mdl 32] Threatens to win with ...Rfc8.} 18. h5 {[%emt 0:13:57] [#]} (18. Ng5 {is a better defense.}) 18... g5 $1 $19 {[%emt 0:00:10][%cal Bg6g5,Bg5g4][%mdl 32]} ({Worse is} 18... f5 19. Ng3 g5 20. Qxd5 Bxd5 21. Nf3 $15) 19. Ng3 {[%emt 0:00:13]} Qd7 {[%emt 0:03:50]} 20. Rde1 {[%emt 0:00:42]} a4 {[%emt 0:03:35]} 21. b4 {[%emt 0:01:09][%cal Oe1e6]} g4 {[%emt 0:07:13]} 22. Qe2 {[%emt 0:00:33]} (22. Qd1) 22... Qd5 {[%emt 0:00:26][%csl LRa2,LRg2]} 23. c4 {[%emt 0:01:01]} dxc3 {[%emt 0:00:26]} 24. Nde4 {[%emt 0:00:13]} Bd2 {[%emt 0:00:57][%csl Ge6][%cal Rd5a2,Bh6d2,Bd2c3,Bc3f6][%mdl 32]} 25. Nxc3 {[%emt 0:00:47]} Bxc3 {[%emt 0:00:20] This bishop pair is nice.} 26. Rc1 {[%emt 0:00:26]} Rac8 {[%emt 0:04:26] Hoping for ...Be5.} 27. h6 {[%emt 0:00:20]} Bf6 {[%emt 0:05:51] ( -> ...Qd4)} 28. Rh5 {[%emt 0:00:17]} Qd4 {[%emt 0:00:38][%csl Gf6][%cal Rd4a1]} 29. Rg5+ {[%emt 0:00:41] Weighted Error Value: White=1.17/Black=0.25 (precise)} 0-1

[Event "Italian-ch Semifinal 2022"]
[Site "Acqui Terme"]
[Date "2022.06.15"]
[Round "2.9"]
[White "Palozza, Christian"]
[Black "Gabbani, Sara"]
[Result "1-0"]
[ECO "E72"]
[WhiteElo "2284"]
[BlackElo "1856"]
[Annotator "TA"]
[PlyCount "43"]
[EventDate "2022.06.15"]
[EventType "swiss"]
[EventCountry "ITA"]
[SourceTitle "playchess.com"]
[Source "ChessBase"]
[SourceQuality "1"]
[TimeControl "40/5400+30:1800+30"]

{[%evp 12,43,32,21,41,42,49,47,58,56,52,32,42,2,68,14,31,-58,122,108,94,101,358,360,600,585,604,600,565,500,608,606,581,481]} 1. d4 {[%emt 0:00:27]} Nf6 {[%emt 0:00:16]} 2. c4 {[%emt 0:00:11]} g6 {[%emt 0:00:20]} 3. g3 {[%emt 0:00:10]} Bg7 {[%emt 0:00:25]} 4. Bg2 {[%emt 0:00:07]} O-O {[%emt 0:01:42]} 5. Nc3 {[%emt 0:00:06]} c6 {[%emt 0:01:24]} 6. e4 {[%emt 0:00:39]} d6 {[%emt 0:04:23]} 7. Nge2 {[%emt 0:01:23]} c5 {[%emt 0:02:51] E72: King's Indian: 4 e4 d6 5 g3.} 8. O-O {[%emt 0:10:37]} Nc6 {[%emt 0:09:05]} 9. d5 {[%emt 0:07:56] [#]} Na5 $146 {[%emt 0:05:42] White is slightly better.} ({Predecessor:} 9... Ne5 10. b3 a6 11. Bb2 Rb8 12. Na4 b5 13. Bxe5 bxa4 14. Bc3 Bd7 15. e5 Ng4 16. exd6 exd6 17. Bxg7 Kxg7 {0-1 (33) Martinez,J-Belmes,M Crespo 2014}) 10. b3 {[%emt 0:04:11]} a6 {[%emt 0:01:46][%cal Ob7b5]} 11. Bd2 {[%emt 0:02:10]} Bd7 {[%emt 0:02:24]} 12. f4 {[%emt 0:06:47]} Rb8 {[%emt 0:07:07]} (12... b5 $11) 13. a4 {[%emt 0:06:53]} (13. Qe1 $14) 13... e6 $11 {[%emt 0:18:27]} 14. h3 {[%emt 0:19:24]} (14. dxe6 $1 $14 fxe6 15. h3 (15. e5 dxe5 16. fxe5 Ng4 $11)) 14... h5 $2 {[%emt 0:03:09] [#]} (14... exd5 $15 {stays ahead.} 15. exd5 h5) 15. dxe6 $1 $16 {[%emt 0:08:25]} ({Don't take} 15. e5 $6 dxe5 16. fxe5 Nh7 $14) 15... fxe6 {[%emt 0:00:49]} 16. e5 $36 {[%emt 0:04:27][%mdl 2048] White is really pushing.} Nh7 {[%emt 0:11:57][%mdl 8192] This move loses the game for Black.} (16... dxe5 $16 {was necessary.} 17. fxe5 Nh7) 17. Ne4 $18 {[%emt 0:00:46]} ({Not} 17. exd6 Bc6 $18) 17... dxe5 $2 {[%emt 0:01:47]} (17... Nc6 18. Nxd6 Qc7 19. Bxc6 Qxc6) 18. Bxa5 {[%emt 0:00:29][%mdl 64] Deflection. White is clearly winning.} Qxa5 {[%emt 0:01:31]} 19. Qxd7 {[%emt 0:00:10]} Qb6 {[%emt 0:01:29]} 20. a5 {[%emt 0:06:50]} Qxb3 {[%emt 0:03:00]} 21. Qxe6+ {[%emt 0:00:38]} Kh8 {[%emt 0:00:08]} 22. Kh2 {[%emt 0:03:00] Weighted Error Value: White=0.24 (precise) /Black=0.82} 1-0